Cogmind - Beta 13 X2 @@@ ROGUE MODE // 2024.01.31 @ 19:21:42 Player: f3-rnm Result: Self-destructed Performance ------------- Evolutions (1) 500 Regions Visited (3) 600 Robots Destroyed (82) 410 Value Destroyed (1847) 1847 Prototype IDs (4) 80 Alien Tech Used (0) 0 Bonus (157) 157 TOTAL SCORE: 3594 Bonus ------- High Alert Combat Kills 275 Friendly Fire -118 Cogmind --------- Core Integrity 61/400 Matter 212/300 Energy 117/265 System Corruption 0% Temperature Cool (0) Movement Treading (160) Location -9/Mines Parts ------- > --- POWER (1) -------- Improved Ion Engine > --- PROPULSION (3) --- Light Treads Light Treads Light Treads > --- UTILITY (3) ------ Large Storage Unit Advanced Targeting Computer > --- WEAPON (2) ------- Improved Assault Rifle Light Cannon > --- INVENTORY (15) --- Heavy Ion Engine Light Treads Light Treads Light Treads Light Treads Compact Wheel Medium Matter Pod (100) Light Armor Plating Improved Assault Rifle Mini Grenade Launcher Flail Peak State ------------ > --- POWER ------------ Cooled Ion Engine > --- PROPULSION ------- Light Treads Light Treads Light Treads > --- UTILITY ---------- Large Storage Unit Advanced Targeting Computer Shield Generator > --- WEAPON ----------- Improved Assault Rifle Light Cannon > --- INVENTORY -------- Improved Ion Engine Heavy Ion Engine Light Treads Light Treads Light Treads Compact Wheel Medium Matter Pod Light Armor Plating Light Armor Plating Improved Assault Rifle Improved Assault Rifle Light Cannon Improved Light Cannon Mini Grenade Launcher Flail [Rating: 18] Favorites ----------- Power Cooled Ion Engine Engine Cooled Ion Engine Propulsion Light Treads Treads Light Treads Utility Large Storage Unit Device Shield Generator Storage Large Storage Unit Processor Improved Targeting Computer Protection Light Armor Plating Weapon Light Cannon Energy Cannon Advanced Beam Cannon Ballistic Gun Improved Assault Rifle Ballistic Cannon Light Cannon Launcher Mini Grenade Launcher Impact Weapon Flail Build | -11 -10 -9 -9 ------- Run | Yrd Mat Mat Min Slots Evolved 2 | . . 2 . Power . | . . . . Propulsion 1 | . . 1 . Utility 1 | . . 1 . Weapon . | . . . . Parts Attached 47 | 6 7 29 5 Power 6 | 1 . 4 1 Engine 6 | 1 . 4 1 Core . | . . . . Reactor . | . . . . Propulsion 14 | 2 3 8 1 Treads 14 | 2 3 8 1 Leg . | . . . . Wheel . | . . . . Hover . | . . . . Flight . | . . . . Utility 8 | 1 1 5 1 Device 2 | . . 2 . Storage 2 | 1 1 . . Processor 3 | . . 3 . Hackware . | . . . . Protection 1 | . . . 1 Artifact . | . . . . Weapon 19 | 2 3 12 2 Energy Gun . | . . . . Energy Cannon 1 | . . 1 . Ballistic Gun 9 | 2 2 4 1 Ballistic Cannon 6 | . 1 5 . Launcher 2 | . . 1 1 Special Weapon . | . . . . Impact Weapon 1 | . . 1 . Slashing Weapon . | . . . . Piercing Weapon . | . . . . Special Melee Weapon . | . . . . Unidentified Prototypes 4 | . . 4 . Parts Lost 12 | . . 7 5 Power 1 | . . . 1 Propulsion 3 | . . 2 1 Utility 3 | . . 1 2 Weapon 5 | . . 4 1 Highest Loss Streak 3 | . . 2 3 To Critical Strikes . | . . . . Average Slot Usage (%) 88 | . 81 89 98 Engine 9 | . 10 9 11 Treads 26 | . 23 26 33 Device 4 | . . 6 . Storage 13 | . 18 12 11 Processor 9 | . . 11 11 Ballistic Gun 12 | . 23 9 8 Ballistic Cannon 9 | . 3 11 12 Naked Turns . | . . . . Heaviest Build 39 | 13 35 39 37 Greatest Support 60 | 40 40 60 60 Greatest Overweight (x) 9 | . 9 1 . Average Overweight (x) . | . . . . Largest Inventory Capacity 15 | 8 15 15 15 Average Capacity 13 | 6 10 15 15 Most Carried 15 | 4 6 15 15 Average Carried 10 | 1 3 13 13 Final Capacity 15 | 8 15 15 15 Final Carried 15 | 2 5 15 11 Class Distribution -------------------- 92% | Mutant 7% | Scavenger-Mutant Dominant Class ---------------- Mutant | -10/Materials Mutant | -9/Materials Scavenger-Mutant | -9/Mines Resources | -11 -10 -9 -9 ----------- Run | Yrd Mat Mat Min Matter Collected 1943 | 229 186 1407 121 Remotely . | . . . . Salvage Created 2265 | . 368 1745 152 Parts 183 | . 38 134 11 Haulers Intercepted 5 | . 1 4 . Recyclers Shooed 1 | . 1 . . Parts Field Recycled . | . . . . Retrieved Matter . | . . . . Parts Self-Destructed . | . . . . Prevented . | . . . . Kills | -11 -10 -9 -9 ------- Run | Yrd Mat Mat Min Combat Hostiles Destroyed 61 | . 11 47 3 Guns 33 | . 11 22 . Cannons 22 | . . 21 1 AOE 6 | . . 4 2 Classes Destroyed 11 | . 5 6 . Worker 5 | . . 4 1 Hauler 5 | . 1 4 . Recycler 3 | . 1 2 . Mechanic 2 | . . 2 . Operator 1 | . . 1 . Watcher 4 | . 1 3 . Swarmer 24 | . 8 16 . Grunt 22 | . 3 17 2 Brawler 3 | . . 3 . Duelist 3 | . . 2 1 Sentry 9 | . . 9 . Thug 1 | . . . 1 Best Kill Streak 11 | . 3 11 3 Combat Bots Only 9 | . 3 9 3 Max Kills in Single Turn 5 | . 2 5 2 Gunslinging 1 | . 1 . . Exploded 4 | . . 4 2 Melee . | . . . . Uniques/NPCs Destroyed . | . . . . Combat | -11 -10 -9 -9 -------- Run | Yrd Mat Mat Min Hostile Shots Fired 315 | . 60 221 34 Missed 86 | . 14 66 6 Damage Taken 2670 | . 380 1534 756 Core 422 | . 83 201 138 Absorbed by Shields 360 | . . 355 5 Core Remaining (%) 83 | 100 66 . . Volleys Fired 207 | . 42 146 19 Largest 2 | . 2 2 2 Hottest 74 | . 55 74 74 Shots Fired 404 | . 84 283 37 Gun 217 | . 82 120 15 Cannon 184 | . 2 161 21 Launcher 3 | . . 2 1 Special . | . . . . Kinetic 401 | . 84 281 36 Thermal . | . . . . Explosive 3 | . . 2 1 Electromagnetic . | . . . . Robot Hit Streak 27 | . 6 27 13 Robot Miss Streak 3 | . 3 3 3 Penetration Max . | . . . . Secondary Targets 2 | . 2 . . Max Gunslinging Chain 1 | . 1 . . Shots Hit Robots 268 | . 42 200 26 Core Hits 111 | . 21 82 8 Critical Kills 2 | . 1 1 . Critical Parts Destroyed 2 | . 2 . . Critical Strikes 10 | . 3 7 . Destroy 4 | . 3 1 . Blast 6 | . . 6 . Melee Attacks 4 | . . 4 . Impact 4 | . . 4 . Slashing . | . . . . Piercing . | . . . . Sneak Attacks . | . . . . Combat Hostiles . | . . . . Follow-up Attacks . | . . . . Damage Inflicted 4739 | . 465 3735 539 Guns 2043 | . 424 1438 181 Cannons 2280 | . 36 1991 253 Explosions 401 | . . 296 105 Melee . | . . . . Ramming 15 | . 5 10 . Kinetic 4323 | . 460 3429 434 Thermal . | . . . . Explosive 401 | . . 296 105 Electromagnetic . | . . . . Impact . | . . . . Slashing . | . . . . Piercing . | . . . . Highest Corruption . | . . . . Average Corruption . | . . . . Corruption Purged . | . . . . Corruption Blocked . | . . . . Overload Shots . | . . . . Overflow Damage 37 | . . 26 11 Projectiles 20 | . . 9 11 Explosions 15 | . . 15 . Melee 2 | . . 2 . Knockbacks 23 | . . 13 10 Impact . | . . . . Kinetic 21 | . . 13 8 Secondary 2 | . . . 2 Self-Inflicted Damage 36 | . . 23 13 Shots 2 | . . 1 1 Rammed 2 | . 1 1 . Targets Rammed 2 | . 1 1 . Kicked . | . . . . Crushed . | . . . . Highest Temperature 16 | . 12 16 15 Average Temperature 6 | . 7 4 8 Received Heat Transfer 578 | . 36 411 131 Siege Activations . | . . . . Robots Corrupted . | . . . . Combat Hostiles . | . . . . Parts Fried . | . . . . Impact Corruptions 1 | . . 1 . Robots Melted . | . . . . Combat Hostiles . | . . . . Parts Melted . | . . . . Heat Transferred . | . . . . Parts Sabotaged . | . . . . Parts Stolen . | . . . . Parts Stripped . | . . . . Power Chain Reactions . | . . . . Missiles Intercepted . | . . . . Alert | -11 -10 -9 -9 ------- Run | Yrd Mat Mat Min Peak Influence 966 | . 194 966 486 Initial 376 | . . 63 376 Average 276 | . 108 320 443 Maximum Alert Level 3 | . . 3 2 Low Security (%) 54 | 100 100 45 . Level 1 14 | . . 19 15 Level 2 24 | . . 26 84 Level 3 6 | . . 9 . Level 4 . | . . . . Level 5 . | . . . . High Security . | . . . . Max Security . | . . . . Squads Dispatched 6 | . 1 5 . Investigation 1 | . . 1 . Extermination . | . . . . Reinforcement 3 | . 1 2 . Assault 2 | . . 2 . Garrison . | . . . . Intercept . | . . . . Searches Triggered . | . . . . Construction Impeded . | . . . . Haulers Reinforced . | . . . . Active Scanning Responses . | . . . . Cargo Convoy Interrupts . | . . . . Stealth | -11 -10 -9 -9 --------- Run | Yrd Mat Mat Min Distress Signals 1 | . . 1 . Communications Jammed . | . . . . Distress Signals . | . . . . Times Spotted 96 | . 18 70 8 Peak Tracking Total 10 | . 3 10 3 Tactical Retreats 8 | . 2 4 2 Traps | -11 -10 -9 -9 ------- Run | Yrd Mat Mat Min Traps Triggered 5 | . 4 1 . Indirectly . | . . . . Trap Hack Attempts . | . . . . Triggered . | . . . . Disarmed . | . . . . Reprogrammed . | . . . . Reused . | . . . . Traps Extracted . | . . . . Installed . | . . . . Triggered . | . . . . Machines | -11 -10 -9 -9 ---------- Run | Yrd Mat Mat Min Machines Disabled 4 | . . 4 . Max in Single Turn 1 | . . 1 . Machines Repaired . | . . . . Machines Dismantled . | . . . . Machines Sabotaged . | . . . . Overloaded Fab Kills . | . . . . Hacking | -11 -10 -9 -9 --------- Run | Yrd Mat Mat Min Machines Accessed 1 | . . 1 . Terminals 1 | . . 1 . Fabricators . | . . . . Repair Stations . | . . . . Recycling Units . | . . . . Scanalyzers . | . . . . Garrison Access . | . . . . Total Hacks 2 | . . 2 . Successful 2 | . . 2 . Failed . | . . . . Catastrophic . | . . . . Database Lockouts . | . . . . Manual 2 | . . 2 . Terminals 2 | . . 2 . Fabricators . | . . . . Repair Stations . | . . . . Recycling Units . | . . . . Scanalyzers . | . . . . Garrison Access . | . . . . Terminal Hacks 1 | . . 1 . Robot Analysis 1 | . . 1 . Fabricator Hacks . | . . . . Repair Station Hacks . | . . . . Recycling Unit Hacks . | . . . . Scanalyzer . | . . . . Garrison Access Hacks . | . . . . Unauthorized Hacks 1 | . . 1 . Terminals 1 | . . 1 . Assimilate 1 | . . 1 . Fabricators . | . . . . Repair Stations . | . . . . Recycling Units . | . . . . Scanalyzers . | . . . . Garrison Access . | . . . . Data Cores Recovered . | . . . . Used . | . . . . Hacking Detections . | . . . . Full Trace Events . | . . . . Feedback Events . | . . . . Feedback Blocked . | . . . . Robot Schematics Acquired . | . . . . Robots Built . | . . . . Authchips . | . . . . Time . | . . . . Total Robot Build Rating . | . . . . Part Schematics Acquired . | . . . . Parts Built . | . . . . Authchips . | . . . . Time . | . . . . Total Part Build Rating . | . . . . Parts Repaired . | . . . . Time . | . . . . Parts Recycled . | . . . . Recycled Matter . | . . . . Retrieved Matter . | . . . . Retrieved Components . | . . . . Parts Scanalyzed . | . . . . Part Schematics Acquired . | . . . . Parts Damaged . | . . . . Bothacking | -11 -10 -9 -9 ------------ Run | Yrd Mat Mat Min Used RIF Installer . | . . . . Robots Hacked . | . . . . Non-combat . | . . . . Combat . | . . . . Robot Hacks Applied . | . . . . Relay Couplers Released . | . . . . Fabnet Peak Effective % . | . . . . Robots Rewired . | . . . . Allies Hacked . | . . . . Hacks Repelled . | . . . . Allies | -11 -10 -9 -9 -------- Run | Yrd Mat Mat Min Total Allies 2 | . . 1 1 Largest Group 1 | . . 1 1 Highest-Rated Group 31 | . . 10 31 Highest-Rated Ally 31 | . . 10 31 Total Orders . | . . . . Ally Attacks 6 | . . . 6 Total Damage 61 | . . . 61 Kills . | . . . . Allies Corrupted . | . . . . Allies Melted . | . . . . Intel | -11 -10 -9 -9 ------- Run | Yrd Mat Mat Min Robot Analysis Total 1 | . . 1 . Derelict Logs Recovered . | . . . . Drone Launches . | . . . . Drone Recoveries . | . . . . Exploration | -11 -10 -9 -9 ------------- Run | Yrd Mat Mat Min Turns Passed 3333 | 88 715 2264 266 Spaces Moved 1479 | 52 320 988 119 Core 10 | 7 3 . . Treads 1469 | 45 317 988 119 Legs . | . . . . Wheels . | . . . . Hover . | . . . . Flight . | . . . . Fastest Speed 50 | 50 160 160 160 Average Speed 169 | 145 180 169 160 Slowest Speed 500 | 160 500 240 160 Overloaded Moves . | . . . . Propulsion Burnouts . | . . . . Robots Hopped . | . . . . Cave-ins Triggered . | . . . . Exploration Rate (%) 39 | 4 48 74 32 Regions Visited 3 Branch Regions 1 Pre-discovered Areas . | . . . . Known Exits Taken . | . . . . Unknown Exits Taken 3 | 1 1 1 . Scrap Searched . | . . . . Spaces Dug 2 | . . 2 . Terrain Destroyed 27 | . . 15 12 Melee 2 | . . 2 . Projectile 2 | . . 2 . AOE 23 | . . 11 12 Terrain Rammed . | . . . . Walls Destroyed . | . . . . Machines Disabled . | . . . . Actions | -11 -10 -9 -9 --------- Run | Yrd Mat Mat Min Total 1903 | 65 383 1298 157 Wait 93 | . 4 75 14 Move 1476 | 51 319 987 119 Hop . | . . . . Pick Up 52 | 8 10 34 . Fast Attach 4 | . . 4 . Attach 30 | 6 7 13 4 Detach . | . . . . Swap 13 | . . 12 1 Drop 22 | . . 22 . Fire 207 | . 42 146 19 Melee 4 | . . 4 . Ram . | . . . . Kick . | . . . . Crush 2 | . 1 1 . Escape Stasis . | . . . . Rewire . | . . . . Trap . | . . . . Miscellaneous . | . . . . Route ------- -11/Scrapyard -10/Materials -9/Materials (discovered 3 exits: [*Mat x2] / [*Min]) -9/Mines (discovered 2 exits: [*Mat x2]) History --------- Turn | Location | Event 50 | -11/Scrapyard | Discovered new exit (range 15) 89 | -11/Scrapyard | Entered Materials 318 | -10/Materials | Build established: Mutant 589 | -10/Materials | Discovered new exit (range 10) 804 | -10/Materials | Entered another Materials area 804 | -9/Materials | Evolved 2 slots: Propulsion x1, Utility x1 2141 | -9/Materials | Discovered new exit (range 11) 2287 | -9/Materials | Destroyed 8 combat bots 2372 | -9/Materials | Discovered new exit (range 11) 2516 | -9/Materials | Discovered new exit (range 5) 2804 | -9/Materials | First assault squad dispatched 2884 | -9/Materials | Core integrity fell below 50% 2917 | -9/Materials | Destroyed 9 combat bots 3068 | -9/Materials | Entered Mines 3071 | -9/Mines | Received a Mining Laser from a helpful Derelict 3260 | -9/Mines | Discovered new exit (range 8) 3300 | -9/Mines | Discovered new exit (range 14) 3322 | -9/Mines | Assembled infested the area 3329 | -9/Mines | Core integrity fell below 20% 3334 | -9/Mines | Self-destructed Last Messages --------------- 03228_ G-47 Trooper knocked back. 03231_ Acquired 1 matter. 03243_ K-01 Serf cleans the Plasma Injector. 03260_ EXIT=FOUND 03313_ K-01 Serf collects debris. 03322_ ALERT: Infestation in the mines, dispatching Demolisher response squad. 03324_ C-30 ARC bursts open, deploying its payload. 03324_ D-53 Grenadier unfolds itself. 03327_ K-01 Serf collects debris. 03328_ The unstable cave ceiling collapses. 03328_ T-07 Excavator destroyed. 03328_ Cld. Ion Engine destroyed. 03328_ Lgt. Armor Plating destroyed. 03330_ Lgt. Treads destroyed. 03330_ D-53 Grenadier destroyed. 03331_ K-01 Serf collects debris. 03331_ D-53 Grenadier knocked back. 03333_ K-01 Serf destroyed. 03334_ The unstable cave ceiling collapses. Map ----- +----------------------------------------------------+ | ???????????????????????????????????????? | | ???????????????????????????????????????? | | ???????????????????????????????????????? | | ???????????????????????????????????????? | | ??????????####??????????????########???? | | ??????????# ##?????????????# #???? | | ??????????# #?????????????# """ #???? | | ?????????## ##?????????#### """ #???? | | ????###### ########### """ #???? | | ????# ## #???? | | ????# ########## ##### ###???? | | ????# ### ##????????# #???# #?????? | | ????# #?# < ##????????? #???# #?????? | | ????# #?# ##??????????###???# #?????? | | ????# ## ##?????????????????#=####### | | ????# ## #??????????? #?????#*%= | | ????# ### ##??????????# #?????# ####### | | ????# #?####??????????# ##????#%#?????? | | ????# ##?????????????# ?????#%#?????? | | ???## ##???????????# ??????# #?????? | | ??## ##??######## """??????#%#?????? | | ??# #?## # """ ##???# #?????? | | ??# ### d """ #??? ?????? | | ??# =%! < #????"""?????? | | ??## * #????????"""?????? | | ???######## @ ##????????"""?????? | | ??????????# ##?????????????????? | | ??????????# #??????????????????? | | ????????# ##??????????????????? | | ????????# ## #???????????????????? | | ??????? ??## ##???????????????????? | | ??????##????## #????????????????????? | | ?????????????# ????????????????????? | | ?????????????## ???????????????????? | | ??????????????## ???????????????????? | | ????????????????# ??????????????????? | | ?????????????????# ?????????????????? | | ??????????????????### ?????????????????? | | ?????????????????????# ????????????????? | | ?????????????????????? ????????????????? | | ???????????????????????????????????????? | | ???????????????????????????????????????? | | ???????????????????????????????????????? | | ???????????????????????????????????????? | | ???????????????????????????????????????? | | ???????????????????????????????????????? | | ???????????????????????????????????????? | | ???????????????????????????????????????? | | ???????????????????????????????????????? | | ???????????????????????????????????????? | +----------------------------------------------------+ Best States ------------- Heat Dissipation 28 Energy Generation 14 Energy Capacity 280 Matter Stores 300 Matter Capacity 300 Sight Range 16 Terrain Scan Density 10 Armor Coverage 150 Evasion (%) 40 Targeting Accuracy 12 Recoil Reduction 3 Item Schematics ----------------- None Robot Schematics ------------------ None Fabricated ------------ Nothing Alien Tech Used ----------------- None Achievements -------------- None Challenges ------------ None Game ------ Seed BiometalCouplerLoader Manual? 0 Play Time 00:17:39 Cumulative 151.5 hours Start 2024.01.31 @ 19:01:20 End 2024.01.31 @ 19:21:42 Sessions 1 Manual Loads 0 Difficulty Rogue Special Mode None Game No. 165 Rogue 129 Adventurer 36 Explorer 0 Win Type - Total 9 Types 2/0/7/0/0/0/0/0/0 Lore% 55 Gallery% 79 Achievement% 67 Wizard Run 0 Options --------- ASCII 0 Keyboard 0 Movement Mouse Keybinds 0 Fullscreen 1 Font 18/SmallcapsGlow Map View 76x50 Zoom Use 0% Tactical HUD 1 Map Filters NONE Filters NONE Steam 1 RUN: 169d7588-3ffb-4294-b127-227e775c175c